[Event "Titled Tuesday Blitz October 18 Late 2022"]
[White "Ozen, Batuhan"]
[Black "Guliyev, Namig"]
[WhiteFideId "6345123"]
[BlackFideId "13400363"]
[WhiteElo "2398"]
[BlackElo "2526"]
[Result "1-0"]
[Round "01"]
[TimeControl "180+1"]
[Date "2022.10.19"]
[WhiteClock "0:00:10"]
[BlackClock "0:00:12"]

1. d4 {[%clk 0:02:58]}  d5 {[%clk 0:02:59]} 2. Nc3 {[%clk 0:02:56]}  Bf5 {[%clk 0:02:57]} 3. f3 {[%clk 0:02:52]}  e5 {[%clk 0:02:39]} 4. e4 {[%clk 0:02:48]}  dxe4 {[%clk 0:02:36]} 5. fxe4 {[%clk 0:02:47]}  exd4 {[%clk 0:02:36]} 6. exf5 {[%clk 0:02:43]}  dxc3 {[%clk 0:02:36]} 7. Qxd8+ {[%clk 0:02:39]}  Kxd8 {[%clk 0:02:37]} 8. Bc4 {[%clk 0:02:36]}  Bb4 {[%clk 0:02:31]} 9. b3 {[%clk 0:02:27]}  Ne7 {[%clk 0:02:30]} 10. Bg5 {[%clk 0:02:17]}  f6 {[%clk 0:02:27]} 11. O-O-O+ {[%clk 0:02:16]}  Ke8 {[%clk 0:02:27]} 12. Bf4 {[%clk 0:02:11]}  Nbc6 {[%clk 0:02:15]} 13. Nf3 {[%clk 0:01:49]}  Nxf5 {[%clk 0:02:14]} 14. Rhe1+ {[%clk 0:01:44]}  Nfe7 {[%clk 0:02:06]} 15. Bxc7 {[%clk 0:01:41]}  Rc8 {[%clk 0:02:05]} 16. Bg3 {[%clk 0:01:34]}  Rd8 {[%clk 0:02:05]} 17. Be6 {[%clk 0:01:25]}  Ba3+ {[%clk 0:01:42]} 18. Kb1 {[%clk 0:01:23]}  Rxd1+ {[%clk 0:01:43]} 19. Rxd1 {[%clk 0:01:22]}  Nd8 {[%clk 0:01:43]} 20. Bc4 {[%clk 0:01:03]}  Nf5 {[%clk 0:01:38]} 21. Bc7 {[%clk 0:00:59]}  Nc6 {[%clk 0:01:28]} 22. Be6 {[%clk 0:00:41]}  Ne3 {[%clk 0:01:12]} 23. Re1 {[%clk 0:00:38]}  Nxg2 {[%clk 0:00:55]} 24. Re2 {[%clk 0:00:37]}  g5 {[%clk 0:00:44]} 25. Rxg2 {[%clk 0:00:20]}  Nd8 {[%clk 0:00:39]} 26. Bf5 {[%clk 0:00:19]}  Be7 {[%clk 0:00:37]} 27. Re2 {[%clk 0:00:18]}  Kf7 {[%clk 0:00:35]} 28. Nd4 {[%clk 0:00:19]}  Bc5 {[%clk 0:00:31]} 29. Ne6 {[%clk 0:00:18]}  Nxe6 {[%clk 0:00:31]} 30. Bxe6+ {[%clk 0:00:19]}  Kg6 {[%clk 0:00:31]} 31. Bc4 {[%clk 0:00:19]}  Rc8 {[%clk 0:00:30]} 32. Ba5 {[%clk 0:00:18]}  Bd4 {[%clk 0:00:28]} 33. Bd3+ {[%clk 0:00:19]}  Kf7 {[%clk 0:00:23]} 34. Bb4 {[%clk 0:00:18]}  Be5 {[%clk 0:00:21]} 35. Ba3 {[%clk 0:00:17]}  h5 {[%clk 0:00:20]} 36. Bc1 {[%clk 0:00:17]}  Ke6 {[%clk 0:00:20]} 37. Rf2 {[%clk 0:00:16]}  Rh8 {[%clk 0:00:19]} 38. Bf5+ {[%clk 0:00:14]}  Kd5 {[%clk 0:00:19]} 39. h3 {[%clk 0:00:15]}  g4 {[%clk 0:00:18]} 40. hxg4 {[%clk 0:00:14]}  h4 {[%clk 0:00:19]} 41. Rf1 {[%clk 0:00:13]}  h3 {[%clk 0:00:19]} 42. Re1 {[%clk 0:00:13]}  h2 {[%clk 0:00:18]} 43. Be4+ {[%clk 0:00:14]}  Ke6 {[%clk 0:00:18]} 44. Bf3 {[%clk 0:00:14]}  b5 {[%clk 0:00:18]} 45. Bf4 {[%clk 0:00:14]}  b4 {[%clk 0:00:17]} 46. Bxe5 {[%clk 0:00:14]}  fxe5 {[%clk 0:00:18]} 47. Kc1 {[%clk 0:00:15]}  Kf6 {[%clk 0:00:18]} 48. Kd1 {[%clk 0:00:15]}  Kg5 {[%clk 0:00:19]} 49. Ke2 {[%clk 0:00:15]}  Kf4 {[%clk 0:00:20]} 50. Kf2 {[%clk 0:00:15]}  Rh3 {[%clk 0:00:19]} 51. Bh1 {[%clk 0:00:15]}  Kxg4 {[%clk 0:00:17]} 52. Rxe5 {[%clk 0:00:16]}  Kf4 {[%clk 0:00:17]} 53. Re8 {[%clk 0:00:15]}  Rh6 {[%clk 0:00:18]} 54. Rf8+ {[%clk 0:00:15]}  Kg5 {[%clk 0:00:18]} 55. Rg8+ {[%clk 0:00:14]}  Kh4 {[%clk 0:00:18]} 56. Rg2 {[%clk 0:00:15]}  Rd6 {[%clk 0:00:18]} 57. Ke3 {[%clk 0:00:15]}  Rd1 {[%clk 0:00:17]} 58. Rxh2+ {[%clk 0:00:14]}  Kg5 {[%clk 0:00:18]} 59. Be4 {[%clk 0:00:13]}  Ra1 {[%clk 0:00:18]} 60. Bd3 {[%clk 0:00:14]}  Rxa2 {[%clk 0:00:17]} 61. Kd4 {[%clk 0:00:14]}  a5 {[%clk 0:00:16]} 62. Kc4 {[%clk 0:00:15]}  Kf4 {[%clk 0:00:16]} 63. Rh5 {[%clk 0:00:14]}  Ke3 {[%clk 0:00:16]} 64. Rh8 {[%clk 0:00:14]}  Kd2 {[%clk 0:00:16]} 65. Rh2+ {[%clk 0:00:14]}  Kc1 {[%clk 0:00:16]} 66. Kb5 {[%clk 0:00:14]}  Kb2 {[%clk 0:00:16]} 67. Rh6 {[%clk 0:00:14]}  a4 {[%clk 0:00:15]} 68. bxa4 {[%clk 0:00:13]}  b3 {[%clk 0:00:15]} 69. cxb3 {[%clk 0:00:13]}  Kxb3 {[%clk 0:00:16]} 70. Rc6 {[%clk 0:00:12]}  Ra3 {[%clk 0:00:12]} 71. a5 {[%clk 0:00:11]}  Ra4 {[%clk 0:00:12]} 72. a6 {[%clk 0:00:11]}  Rb4+ {[%clk 0:00:12]} 73. Ka5 {[%clk 0:00:10]}  Ra4+ {[%clk 0:00:13]} 74. Kb6 {[%clk 0:00:10]}  Rd4 {[%clk 0:00:13]} 75. a7 {[%clk 0:00:09]}  Rxd3 {[%clk 0:00:12]} 76. a8=Q {[%clk 0:00:10]}  c2 {[%clk 0:00:13]} 77. Qa1 {[%clk 0:00:09]}  Rd1 {[%clk 0:00:12]} 78. Rc3+ {[%clk 0:00:08]}  Kb4 {[%clk 0:00:12]} 79. Qb2+ {[%clk 0:00:09]}  Ka4 {[%clk 0:00:12]} 80. Ra3# {[%clk 0:00:10]} 1-0


[Site "https://www.chess.com"]

[Event "Titled Tuesday Blitz October 18 Late 2022"]
[White "Papasimakopoulos, Alexandros"]
[Black "Drost, Peter"]
[WhiteFideId "4244125"]
[BlackFideId "1017896"]
[WhiteElo "2357"]
[BlackElo "2409"]
[Result "1-0"]
[Round "01"]
[TimeControl "180+1"]
[Date "2022.10.19"]
[WhiteClock "0:00:38"]
[BlackClock "0:00:07"]

1. d4 {[%clk 0:02:59]}  Nf6 {[%clk 0:02:58]} 2. c4 {[%clk 0:03:00]}  g6 {[%clk 0:02:58]} 3. Nc3 {[%clk 0:03:00]}  d5 {[%clk 0:02:59]} 4. Nf3 {[%clk 0:03:00]}  Bg7 {[%clk 0:02:58]} 5. Qb3 {[%clk 0:03:01]}  dxc4 {[%clk 0:02:58]} 6. Qxc4 {[%clk 0:03:02]}  O-O {[%clk 0:02:58]} 7. e4 {[%clk 0:03:02]}  Nc6 {[%clk 0:02:59]} 8. Be2 {[%clk 0:03:00]}  e5 {[%clk 0:02:58]} 9. d5 {[%clk 0:03:00]}  Nd4 {[%clk 0:02:58]} 10. Nxd4 {[%clk 0:03:01]}  exd4 {[%clk 0:02:59]} 11. Qxd4 {[%clk 0:03:01]}  c6 {[%clk 0:02:59]} 12. d6 {[%clk 0:03:01]}  Nd5 {[%clk 0:02:44]} 13. Qd3 {[%clk 0:02:55]}  Nxc3 {[%clk 0:02:18]} 14. bxc3 {[%clk 0:02:55]}  f5 {[%clk 0:02:18]} 15. O-O {[%clk 0:02:27]}  fxe4 {[%clk 0:02:17]} 16. Qxe4 {[%clk 0:02:28]}  Qxd6 {[%clk 0:02:16]} 17. Rb1 {[%clk 0:02:10]}  Bf5 {[%clk 0:01:54]} 18. Qc4+ {[%clk 0:02:09]}  Be6 {[%clk 0:01:54]} 19. Qa4 {[%clk 0:02:00]}  b5 {[%clk 0:01:45]} 20. Qa5 {[%clk 0:01:56]}  Bd5 {[%clk 0:01:37]} 21. Ba3 {[%clk 0:01:51]}  Qe5 {[%clk 0:01:26]} 22. Bxf8 {[%clk 0:01:49]}  Rxf8 {[%clk 0:01:27]} 23. Rfe1 {[%clk 0:01:37]}  Qxc3 {[%clk 0:01:27]} 24. Qxc3 {[%clk 0:01:35]}  Bxc3 {[%clk 0:01:28]} 25. Rec1 {[%clk 0:01:34]}  Bd4 {[%clk 0:01:24]} 26. Bf3 {[%clk 0:01:34]}  Bxf3 {[%clk 0:01:19]} 27. gxf3 {[%clk 0:01:33]}  Rxf3 {[%clk 0:01:02]} 28. Rc2 {[%clk 0:01:33]}  a5 {[%clk 0:00:50]} 29. Kg2 {[%clk 0:01:33]}  Rf6 {[%clk 0:00:47]} 30. f3 {[%clk 0:01:32]}  b4 {[%clk 0:00:46]} 31. Re1 {[%clk 0:01:29]}  c5 {[%clk 0:00:46]} 32. Re8+ {[%clk 0:01:28]}  Kg7 {[%clk 0:00:41]} 33. Ra8 {[%clk 0:01:27]}  Rc6 {[%clk 0:00:36]} 34. Rxa5 {[%clk 0:01:26]}  c4 {[%clk 0:00:36]} 35. Rb5 {[%clk 0:01:23]}  c3 {[%clk 0:00:12]} 36. Rxb4 {[%clk 0:01:22]}  Bf6 {[%clk 0:00:11]} 37. a4 {[%clk 0:01:18]}  Rd6 {[%clk 0:00:11]} 38. a5 {[%clk 0:01:12]}  Rd5 {[%clk 0:00:11]} 39. a6 {[%clk 0:00:49]}  Ra5 {[%clk 0:00:08]} 40. Rb6 {[%clk 0:00:48]}  Bd4 {[%clk 0:00:07]} 41. Rd6 {[%clk 0:00:47]}  Be5 {[%clk 0:00:07]} 42. Rc6 {[%clk 0:00:45]}  Bd4 {[%clk 0:00:08]} 43. Kf1 {[%clk 0:00:43]}  h5 {[%clk 0:00:08]} 44. Ke2 {[%clk 0:00:43]}  Kh6 {[%clk 0:00:07]} 45. Kd3 {[%clk 0:00:43]}  Bg7 {[%clk 0:00:08]} 46. Rg2 {[%clk 0:00:39]}  h4 {[%clk 0:00:07]} 47. Rcxg6+ {[%clk 0:00:38]} 1-0


[Site "https://www.chess.com"]

[Event "Titled Tuesday Blitz October 18 Late 2022"]
[White "Paravyan, David"]
[Black "Ekdyshman, Mikhail"]
[WhiteFideId "4194985"]
[BlackFideId "4149416"]
[WhiteElo "2555"]
[BlackElo "2164"]
[Result "1-0"]
[Round "01"]
[TimeControl "180+1"]
[Date "2022.10.18"]
[WhiteClock "0:02:52"]
[BlackClock "0:01:26"]

1. e4 {[%clk 0:02:58]}  c5 {[%clk 0:02:59]} 2. Nf3 {[%clk 0:02:59]}  Nf6 {[%clk 0:02:59]} 3. Nc3 {[%clk 0:02:58]}  d5 {[%clk 0:02:59]} 4. exd5 {[%clk 0:02:58]}  Nxd5 {[%clk 0:02:59]} 5. Bb5+ {[%clk 0:02:59]}  Bd7 {[%clk 0:03:00]} 6. Ne5 {[%clk 0:02:56]}  Nxc3 {[%clk 0:02:30]} 7. Qf3 {[%clk 0:02:52]}  f6 {[%clk 0:02:17]} 8. Qh5+ {[%clk 0:02:51]}  g6 {[%clk 0:02:16]} 9. Nxg6 {[%clk 0:02:52]}  Qb6 {[%clk 0:01:32]} 10. Nxh8+ {[%clk 0:02:51]}  Kd8 {[%clk 0:01:32]} 11. Bxd7 {[%clk 0:02:52]}  Nxd7 {[%clk 0:01:28]} 12. dxc3 {[%clk 0:02:53]}  Qe6+ {[%clk 0:01:26]} 13. Be3 {[%clk 0:02:52]} 1-0


[Site "https://www.chess.com"]

[Event "Titled Tuesday Blitz October 18 Late 2022"]
[White "Poliakova, Varvara"]
[Black "Keymer, Vincent"]
[WhiteFideId "13518313"]
[BlackFideId "12940690"]
[WhiteElo "1938"]
[BlackElo "2600"]
[Result "0-1"]
[Round "01"]
[TimeControl "180+1"]
[Date "2022.10.18"]
[WhiteClock "0:00:28"]
[BlackClock "0:00:05"]

1. e4 {[%clk 0:03:00]}  c6 {[%clk 0:02:18]} 2. d4 {[%clk 0:02:58]}  d5 {[%clk 0:02:19]} 3. Nd2 {[%clk 0:02:58]}  dxe4 {[%clk 0:02:18]} 4. Nxe4 {[%clk 0:02:59]}  Nf6 {[%clk 0:02:18]} 5. Nxf6+ {[%clk 0:02:59]}  exf6 {[%clk 0:02:19]} 6. c3 {[%clk 0:02:59]}  Bd6 {[%clk 0:02:19]} 7. Bd3 {[%clk 0:03:00]}  O-O {[%clk 0:02:20]} 8. Qc2 {[%clk 0:02:59]}  Re8+ {[%clk 0:02:21]} 9. Ne2 {[%clk 0:02:59]}  h5 {[%clk 0:02:21]} 10. Be3 {[%clk 0:02:59]}  Nd7 {[%clk 0:02:21]} 11. O-O-O {[%clk 0:02:57]}  Nf8 {[%clk 0:02:21]} 12. Nf4 {[%clk 0:02:50]}  Bxf4 {[%clk 0:02:07]} 13. Bxf4 {[%clk 0:02:51]}  Be6 {[%clk 0:02:05]} 14. Kb1 {[%clk 0:02:49]}  Qa5 {[%clk 0:02:00]} 15. a3 {[%clk 0:02:46]}  Rad8 {[%clk 0:01:53]} 16. Rhe1 {[%clk 0:02:38]}  Ng6 {[%clk 0:01:47]} 17. Bd2 {[%clk 0:02:34]}  Nh4 {[%clk 0:01:10]} 18. Be4 {[%clk 0:02:06]}  f5 {[%clk 0:00:43]} 19. Bd3 {[%clk 0:02:04]}  Rc8 {[%clk 0:00:19]} 20. Re5 {[%clk 0:01:59]}  Qc7 {[%clk 0:00:18]} 21. Rde1 {[%clk 0:01:59]}  Qd7 {[%clk 0:00:17]} 22. f4 {[%clk 0:01:49]}  Nxg2 {[%clk 0:00:15]} 23. Rg1 {[%clk 0:01:47]}  Nh4 {[%clk 0:00:16]} 24. Qd1 {[%clk 0:01:43]}  Ng6 {[%clk 0:00:12]} 25. Ree1 {[%clk 0:01:31]}  Qd5 {[%clk 0:00:11]} 26. Kc1 {[%clk 0:01:24]}  c5 {[%clk 0:00:11]} 27. Bb5 {[%clk 0:01:07]}  Red8 {[%clk 0:00:10]} 28. Qxh5 {[%clk 0:00:31]}  cxd4 {[%clk 0:00:10]} 29. Ba4 {[%clk 0:00:26]}  dxc3 {[%clk 0:00:08]} 30. Bxc3 {[%clk 0:00:27]}  Rxc3+ {[%clk 0:00:07]} 31. bxc3 {[%clk 0:00:28]}  Qd2+ {[%clk 0:00:07]} 32. Kb1 {[%clk 0:00:28]}  Qa2+ {[%clk 0:00:07]} 33. Kc1 {[%clk 0:00:28]}  Qxa3+ {[%clk 0:00:08]} 34. Kb1 {[%clk 0:00:28]}  Ba2+ {[%clk 0:00:07]} 35. Kc2 {[%clk 0:00:27]}  Qxa4+ {[%clk 0:00:07]} 36. Kb2 {[%clk 0:00:27]}  Qb3+ {[%clk 0:00:05]} 37. Ka1 {[%clk 0:00:28]}  Qa3 {[%clk 0:00:05]} 0-1


[Site "https://www.chess.com"]

[Event "Titled Tuesday Blitz October 18 Late 2022"]
[White "Prabhu, Naveen"]
[Black "Czernek, Tymon"]
[WhiteFideId "30939372"]
[BlackFideId "1199510"]
[WhiteElo "2334"]
[BlackElo "2240"]
[Result "0-1"]
[Round "01"]
[TimeControl "180+1"]
[Date "2022.10.19"]
[WhiteClock "0:01:09"]
[BlackClock "0:00:27"]

1. Nf3 {[%clk 0:02:59]}  Nf6 {[%clk 0:02:59]} 2. c4 {[%clk 0:02:58]}  g6 {[%clk 0:03:00]} 3. Nc3 {[%clk 0:02:58]}  Bg7 {[%clk 0:03:00]} 4. d4 {[%clk 0:02:58]}  O-O {[%clk 0:03:00]} 5. e4 {[%clk 0:02:58]}  d6 {[%clk 0:03:00]} 6. Be3 {[%clk 0:02:57]}  e5 {[%clk 0:02:54]} 7. d5 {[%clk 0:02:56]}  a5 {[%clk 0:02:50]} 8. Qd2 {[%clk 0:02:56]}  Na6 {[%clk 0:02:50]} 9. Bh6 {[%clk 0:02:55]}  Nc5 {[%clk 0:02:50]} 10. Bxg7 {[%clk 0:02:53]}  Kxg7 {[%clk 0:02:51]} 11. Bd3 {[%clk 0:02:53]}  Nxd3+ {[%clk 0:02:50]} 12. Qxd3 {[%clk 0:02:51]}  Nh5 {[%clk 0:02:51]} 13. g3 {[%clk 0:02:50]}  f5 {[%clk 0:02:50]} 14. O-O-O {[%clk 0:02:45]}  fxe4 {[%clk 0:02:48]} 15. Nxe4 {[%clk 0:02:45]}  Bg4 {[%clk 0:02:47]} 16. Ned2 {[%clk 0:02:43]}  Nf6 {[%clk 0:02:37]} 17. Ng5 {[%clk 0:02:26]}  Qe7 {[%clk 0:02:15]} 18. f3 {[%clk 0:02:20]}  Bf5 {[%clk 0:02:11]} 19. Qe3 {[%clk 0:02:18]}  c6 {[%clk 0:02:00]} 20. g4 {[%clk 0:02:14]}  Bd7 {[%clk 0:01:55]} 21. dxc6 {[%clk 0:02:14]}  Bxc6 {[%clk 0:01:48]} 22. h4 {[%clk 0:02:12]}  Rac8 {[%clk 0:01:25]} 23. h5 {[%clk 0:02:11]}  gxh5 {[%clk 0:01:07]} 24. gxh5 {[%clk 0:02:08]}  d5 {[%clk 0:01:07]} 25. Rdg1 {[%clk 0:02:08]}  Kh8 {[%clk 0:01:07]} 26. h6 {[%clk 0:01:57]}  b5 {[%clk 0:01:04]} 27. cxb5 {[%clk 0:01:49]}  d4 {[%clk 0:01:01]} 28. Qf2 {[%clk 0:01:29]}  Bxf3+ {[%clk 0:00:58]} 29. Kb1 {[%clk 0:01:30]}  Ne4 {[%clk 0:00:44]} 30. Ngxe4 {[%clk 0:01:14]}  Bxe4+ {[%clk 0:00:43]} 31. Nxe4 {[%clk 0:01:15]}  Rxf2 {[%clk 0:00:44]} 32. Nxf2 {[%clk 0:01:16]}  e4 {[%clk 0:00:43]} 33. Rg7 {[%clk 0:01:16]}  Qe6 {[%clk 0:00:38]} 34. b6 {[%clk 0:01:14]}  e3 {[%clk 0:00:37]} 35. b7 {[%clk 0:01:12]}  Rb8 {[%clk 0:00:31]} 36. Nd3 {[%clk 0:01:09]}  Qe4 {[%clk 0:00:27]} 0-1


[Site "https://www.chess.com"]

[Event "Titled Tuesday Blitz October 18 Late 2022"]
[White "Priasmoro, Novendra"]
[Black "Brown, Andrew"]
[WhiteFideId "7105029"]
[BlackFideId "3206513"]
[WhiteElo "2412"]
[BlackElo "2245"]
[Result "1-0"]
[Round "01"]
[TimeControl "180+1"]
[Date "2022.10.19"]
[WhiteClock "0:01:08"]
[BlackClock "0:00:07"]

1. e4 {[%clk 0:03:00]}  g6 {[%clk 0:02:59]} 2. d4 {[%clk 0:03:00]}  Bg7 {[%clk 0:02:59]} 3. Nf3 {[%clk 0:03:01]}  d6 {[%clk 0:02:58]} 4. Bd3 {[%clk 0:03:00]}  a6 {[%clk 0:02:58]} 5. O-O {[%clk 0:02:59]}  b5 {[%clk 0:02:58]} 6. a4 {[%clk 0:02:59]}  b4 {[%clk 0:02:58]} 7. c3 {[%clk 0:02:59]}  a5 {[%clk 0:02:56]} 8. Nbd2 {[%clk 0:02:55]}  Ba6 {[%clk 0:02:53]} 9. Bxa6 {[%clk 0:02:53]}  Nxa6 {[%clk 0:02:53]} 10. Re1 {[%clk 0:02:53]}  e6 {[%clk 0:02:51]} 11. Nc4 {[%clk 0:02:53]}  Nb8 {[%clk 0:02:28]} 12. Qb3 {[%clk 0:02:52]}  bxc3 {[%clk 0:02:24]} 13. bxc3 {[%clk 0:02:53]}  Ne7 {[%clk 0:02:24]} 14. e5 {[%clk 0:02:35]}  O-O {[%clk 0:02:21]} 15. exd6 {[%clk 0:02:27]}  cxd6 {[%clk 0:02:20]} 16. Ba3 {[%clk 0:02:28]}  d5 {[%clk 0:02:14]} 17. Nce5 {[%clk 0:02:23]}  Qc7 {[%clk 0:02:05]} 18. Rab1 {[%clk 0:02:17]}  Rc8 {[%clk 0:02:02]} 19. Qb7 {[%clk 0:02:13]}  Nbc6 {[%clk 0:01:56]} 20. Nxf7 {[%clk 0:01:53]}  Qxb7 {[%clk 0:01:43]} 21. Rxb7 {[%clk 0:01:54]}  Kxf7 {[%clk 0:01:42]} 22. Ng5+ {[%clk 0:01:54]}  Ke8 {[%clk 0:01:39]} 23. Nxe6 {[%clk 0:01:54]}  Bf6 {[%clk 0:01:33]} 24. Nc7+ {[%clk 0:01:53]}  Rxc7 {[%clk 0:01:33]} 25. Rxc7 {[%clk 0:01:54]}  Kf7 {[%clk 0:01:01]} 26. Rb1 {[%clk 0:01:49]}  Rb8 {[%clk 0:00:21]} 27. Rxb8 {[%clk 0:01:47]}  Nxb8 {[%clk 0:00:20]} 28. f4 {[%clk 0:01:33]}  Ke6 {[%clk 0:00:21]} 29. g4 {[%clk 0:01:33]}  h6 {[%clk 0:00:19]} 30. Kf2 {[%clk 0:01:32]}  Bh4+ {[%clk 0:00:18]} 31. Ke3 {[%clk 0:01:32]}  Nec6 {[%clk 0:00:15]} 32. Kd3 {[%clk 0:01:30]}  Be7 {[%clk 0:00:14]} 33. Bxe7 {[%clk 0:01:21]}  Nxe7 {[%clk 0:00:15]} 34. c4 {[%clk 0:01:21]}  dxc4+ {[%clk 0:00:15]} 35. Kxc4 {[%clk 0:01:22]}  Nd7 {[%clk 0:00:14]} 36. Kb5 {[%clk 0:01:17]}  h5 {[%clk 0:00:11]} 37. h3 {[%clk 0:01:16]}  Kd6 {[%clk 0:00:10]} 38. Rb7 {[%clk 0:01:08]}  Nf6 {[%clk 0:00:07]} 39. Rb6+ {[%clk 0:01:08]} 1-0


[Site "https://www.chess.com"]

[Event "Titled Tuesday Blitz October 18 Late 2022"]
[White "Prydun, Andriy"]
[Black "Thomforde-Toates, Noah"]
[WhiteFideId "14145898"]
[BlackFideId "30951992"]
[WhiteElo "2163"]
[BlackElo "2651"]
[Result "1/2-1/2"]
[Round "01"]
[TimeControl "180+1"]
[Date "2022.10.19"]
[WhiteClock "0:00:08"]
[BlackClock "0:00:20"]

1. e4 {[%clk 0:03:00]}  c5 {[%clk 0:02:59]} 2. Nf3 {[%clk 0:03:01]}  g6 {[%clk 0:03:00]} 3. c3 {[%clk 0:03:01]}  Bg7 {[%clk 0:02:59]} 4. d4 {[%clk 0:03:00]}  cxd4 {[%clk 0:03:00]} 5. cxd4 {[%clk 0:03:01]}  Nf6 {[%clk 0:03:00]} 6. Nc3 {[%clk 0:03:00]}  d5 {[%clk 0:02:59]} 7. e5 {[%clk 0:03:00]}  Ne4 {[%clk 0:02:59]} 8. h3 {[%clk 0:02:56]}  Nc6 {[%clk 0:02:57]} 9. Bd3 {[%clk 0:02:55]}  Nxc3 {[%clk 0:02:56]} 10. bxc3 {[%clk 0:02:56]}  Bf5 {[%clk 0:02:56]} 11. O-O {[%clk 0:02:54]}  Bxd3 {[%clk 0:02:56]} 12. Qxd3 {[%clk 0:02:55]}  O-O {[%clk 0:02:55]} 13. Nd2 {[%clk 0:02:44]}  e6 {[%clk 0:02:55]} 14. Rb1 {[%clk 0:02:40]}  b6 {[%clk 0:02:53]} 15. Ba3 {[%clk 0:02:37]}  Re8 {[%clk 0:02:51]} 16. Rfc1 {[%clk 0:02:28]}  Rc8 {[%clk 0:02:50]} 17. Bd6 {[%clk 0:02:11]}  Bf8 {[%clk 0:02:45]} 18. Bxf8 {[%clk 0:02:11]}  Kxf8 {[%clk 0:02:46]} 19. Nf3 {[%clk 0:02:07]}  Na5 {[%clk 0:02:44]} 20. h4 {[%clk 0:02:07]}  h5 {[%clk 0:02:41]} 21. Ng5 {[%clk 0:02:05]}  Kg7 {[%clk 0:02:39]} 22. Rd1 {[%clk 0:01:53]}  Re7 {[%clk 0:02:37]} 23. Qf3 {[%clk 0:01:53]}  Rec7 {[%clk 0:02:36]} 24. Rd3 {[%clk 0:01:53]}  Nc6 {[%clk 0:02:29]} 25. Qf4 {[%clk 0:01:47]}  Qe7 {[%clk 0:02:22]} 26. Rf3 {[%clk 0:01:44]}  Nd8 {[%clk 0:02:21]} 27. Qd2 {[%clk 0:01:42]}  Qe8 {[%clk 0:02:07]} 28. Rb4 {[%clk 0:01:36]}  Rc4 {[%clk 0:02:07]} 29. Rb3 {[%clk 0:01:34]}  Qe7 {[%clk 0:01:59]} 30. g3 {[%clk 0:01:17]}  R8c7 {[%clk 0:01:58]} 31. Kg2 {[%clk 0:01:17]}  Nb7 {[%clk 0:01:49]} 32. Rb1 {[%clk 0:01:08]}  Qe8 {[%clk 0:01:46]} 33. Re1 {[%clk 0:00:45]}  a5 {[%clk 0:01:36]} 34. Ree3 {[%clk 0:00:38]}  b5 {[%clk 0:01:34]} 35. Rd3 {[%clk 0:00:37]}  Nd8 {[%clk 0:01:32]} 36. Qf4 {[%clk 0:00:37]}  Qe7 {[%clk 0:01:24]} 37. g4 {[%clk 0:00:36]}  hxg4 {[%clk 0:01:22]} 38. Qxg4 {[%clk 0:00:37]}  Kf8 {[%clk 0:01:16]} 39. h5 {[%clk 0:00:35]}  Ke8 {[%clk 0:01:07]} 40. hxg6 {[%clk 0:00:34]}  fxg6 {[%clk 0:01:06]} 41. Rf6 {[%clk 0:00:33]}  Kd7 {[%clk 0:01:06]} 42. Rdf3 {[%clk 0:00:30]}  Kc8 {[%clk 0:00:55]} 43. Nxe6 {[%clk 0:00:29]}  Nxe6 {[%clk 0:00:44]} 44. Rxe6 {[%clk 0:00:30]}  Qd7 {[%clk 0:00:45]} 45. Rff6 {[%clk 0:00:30]}  Rxc3 {[%clk 0:00:40]} 46. Qxg6 {[%clk 0:00:29]}  Qg7 {[%clk 0:00:37]} 47. Rb6 {[%clk 0:00:29]}  Qxg6+ {[%clk 0:00:36]} 48. Rxg6 {[%clk 0:00:30]}  Rf7 {[%clk 0:00:34]} 49. e6 {[%clk 0:00:29]}  Rf4 {[%clk 0:00:32]} 50. Rg7 {[%clk 0:00:27]}  Rc2 {[%clk 0:00:30]} 51. e7 {[%clk 0:00:22]}  Rcxf2+ {[%clk 0:00:29]} 52. Kh3 {[%clk 0:00:22]}  R2f3+ {[%clk 0:00:26]} 53. Kg2 {[%clk 0:00:17]}  Rf2+ {[%clk 0:00:25]} 54. Kh3 {[%clk 0:00:17]}  R2f3+ {[%clk 0:00:23]} 55. Rg3 {[%clk 0:00:14]}  Kd7 {[%clk 0:00:21]} 56. Rxb5 {[%clk 0:00:13]}  Rxg3+ {[%clk 0:00:20]} 57. Kxg3 {[%clk 0:00:12]}  Rxd4 {[%clk 0:00:20]} 58. Rxa5 {[%clk 0:00:12]}  Kxe7 {[%clk 0:00:21]} 59. Kf3 {[%clk 0:00:13]}  Kd6 {[%clk 0:00:21]} 60. Ke3 {[%clk 0:00:13]}  Rh4 {[%clk 0:00:21]} 61. Ra8 {[%clk 0:00:11]}  Rh2 {[%clk 0:00:21]} 62. a4 {[%clk 0:00:11]}  Rh3+ {[%clk 0:00:20]} 63. Kd2 {[%clk 0:00:10]}  Kc5 {[%clk 0:00:20]} 64. a5 {[%clk 0:00:10]}  Kd4 {[%clk 0:00:21]} 65. a6 {[%clk 0:00:10]}  Rh2+ {[%clk 0:00:21]} 66. Ke1 {[%clk 0:00:10]}  Kd3 {[%clk 0:00:21]} 67. Rd8 {[%clk 0:00:09]}  Re2+ {[%clk 0:00:17]} 68. Kf1 {[%clk 0:00:09]}  Ra2 {[%clk 0:00:17]} 69. Rxd5+ {[%clk 0:00:08]}  Ke3 {[%clk 0:00:18]} 70. Rd6 {[%clk 0:00:08]}  Kf3 {[%clk 0:00:18]} 71. Ke1 {[%clk 0:00:08]}  Ke3 {[%clk 0:00:19]} 72. Kf1 {[%clk 0:00:08]}  Ra1+ {[%clk 0:00:19]} 73. Kg2 {[%clk 0:00:08]}  Ra2+ {[%clk 0:00:20]} 74. Kf1 {[%clk 0:00:08]} 1/2-1/2


[Site "https://www.chess.com"]

[Event "Titled Tuesday Blitz October 18 Late 2022"]
[White "Radovic, Janko"]
[Black "Jimenez Jimenez, Leandro"]
[WhiteFideId "911518"]
[BlackFideId "6415253"]
[WhiteElo "2318"]
[BlackElo "2217"]
[Result "1-0"]
[Round "01"]
[TimeControl "180+1"]
[Date "2022.10.19"]
[WhiteClock "0:02:16"]
[BlackClock "0:02:11"]

1. Nf3 {[%clk 0:02:59]}  Nf6 {[%clk 0:02:57]} 2. c4 {[%clk 0:03:00]}  c6 {[%clk 0:02:57]} 3. g3 {[%clk 0:03:00]}  d5 {[%clk 0:02:58]} 4. b3 {[%clk 0:03:00]}  Bg4 {[%clk 0:02:55]} 5. Bg2 {[%clk 0:02:59]}  Nbd7 {[%clk 0:02:55]} 6. Bb2 {[%clk 0:02:58]}  Qc7 {[%clk 0:02:53]} 7. cxd5 {[%clk 0:02:52]}  cxd5 {[%clk 0:02:53]} 8. Nc3 {[%clk 0:02:53]}  e6 {[%clk 0:02:48]} 9. Rc1 {[%clk 0:02:51]}  Qa5 {[%clk 0:02:47]} 10. O-O {[%clk 0:02:50]}  Ba3 {[%clk 0:02:44]} 11. Bxa3 {[%clk 0:02:48]}  Qxa3 {[%clk 0:02:39]} 12. Nb5 {[%clk 0:02:46]}  Qa5 {[%clk 0:02:40]} 13. Nc7+ {[%clk 0:02:47]}  Ke7 {[%clk 0:02:40]} 14. Nxa8 {[%clk 0:02:47]}  Rxa8 {[%clk 0:02:39]} 15. Qc2 {[%clk 0:02:41]}  Bf5 {[%clk 0:02:35]} 16. d3 {[%clk 0:02:34]}  h6 {[%clk 0:02:23]} 17. Qc7 {[%clk 0:02:33]}  Qxa2 {[%clk 0:02:20]} 18. Nd4 {[%clk 0:02:21]}  Bg4 {[%clk 0:02:15]} 19. Qxb7 {[%clk 0:02:17]}  Rb8 {[%clk 0:02:11]} 20. Nc6+ {[%clk 0:02:16]} 1-0


[Site "https://www.chess.com"]